fUSD/lending_fUSD_20250219
["ID","MTS","AMOUNT","RATE_DAILY","PERIOD"]
[353604179,1739956971469,500.0,0.00013698,2]
[353604180,1739956971502,1333.98,0.0001378,2]
[353604181,1739956971540,2090.9,0.0001378,2]
[353604182,1739956971601,580.48,0.00013945,2]
[353604183,1739956971663,823.1,0.00013698,2]
[353604184,1739956971714,1333.98,0.00013863,2]
[353604185,1739956971793,2090.9,0.00013863,2]
[353604186,1739956971860,500.0,0.0001378,2]
[353604187,1739956971916,823.1,0.0001378,2]
[353604188,1739956972019,1333.98,0.00013945,2]
[353604189,1739956972099,2090.9,0.00013945,2]
[353604190,1739956972272,500.0,0.00013863,2]
[353604191,1739956972437,552.5,0.00013698,2]
[353604192,1739956972500,507.23573298,0.00013945,2]
[353604193,1739956972539,823.1,0.00013863,2]
[353604194,1739956972615,733.25,0.00013698,2]
[353604195,1739956972699,552.5,0.0001378,2]
[353604196,1739956972775,823.1,0.00013945,2]
[353604197,1739956972858,733.25,0.0001378,2]
[353604198,1739956972971,552.5,0.00013863,2]
[353604199,1739956973121,733.25,0.00013863,2]
[353604200,1739956973304,552.5,0.00013945,2]
[353604201,1739956973391,733.25,0.00013945,2]
[353604202,1739956973546,500.0,0.00013698,2]
[353604203,1739956973794,500.0,0.0001378,2]
[353604204,1739956974004,1331.05,0.00013698,2]
[353604205,1739956974047,381.98230396,0.00013863,2]
[353604206,1739956974267,1331.05,0.0001378,2]
[353604207,1739956974692,1331.05,0.00013863,2]
[353604208,1739956975117,1331.05,0.00013945,2]
[353604209,1739956975279,500.0,0.00013698,2]
[353604210,1739956975546,500.0,0.0001378,2]
[353604211,1739956975777,500.0,0.00013863,2]
[353604212,1739956975874,226.95155046,0.00013698,2]
[353604213,1739956976018,500.0,0.00013945,2]
[353604214,1739956976085,500.0,0.00013698,2]
[353604215,1739956976263,500.0,0.00013698,2]
[353604216,1739956976361,500.0,0.0001378,2]
[353604217,1739956976511,500.0,0.0001378,2]
[353604218,1739956976832,500.0,0.00013863,2]
[353604219,1739956976915,513.68772795,0.00013863,2]
[353604220,1739956976945,500.0,0.00013945,2]
[353604221,1739956978162,321.80905337,0.00013698,2]
[353604222,1739956978244,1865.52,0.00013698,2]
[353604223,1739956978438,1865.52,0.0001378,2]
[353604224,1739956978637,-551.88,0.00013698,2]
[353604225,1739956978668,-137474.92566832,0.00014,3]
[353604226,1739956978698,-1880.6235516,0.00014016,2]
[353604227,1739956978729,-1305.4449414,0.00014016,2]
[353604228,1739956978758,-303.6119941,0.00014016,2]
[353604229,1739956978788,-818.36297731,0.00014016,2]
[353604230,1739956978817,-194.5583732,0.00014016,2]
[353604231,1739956978848,-496.27350272,0.00014027,2]
[353604232,1739956978876,-500.0,0.00014027,2]
[353604233,1739956978909,-500.0,0.00014027,2]
[353604234,1739956978940,-500.0,0.00014027,2]
[353604235,1739956978968,-543.01,0.00014027,2]
[353604236,1739956978996,-634.82,0.00014027,2]
[353604237,1739956979025,-247.16340168,0.00014027,2]
[353604238,1739956979053,-500.0,0.00014027,2]
[353604239,1739956979081,-500.0,0.00014027,2]
[353604240,1739956979109,-500.0,0.00014027,2]
[353604241,1739956979136,-541.04,0.00014027,2]
[353604242,1739956979163,-500.0,0.00014027,2]
[353604243,1739956979191,-725.34,0.00014027,2]
[353604244,1739956979219,-778.48,0.00014027,2]
[353604245,1739956979247,-500.0,0.00014027,2]
[353604246,1739956979274,-500.0,0.00014027,2]
[353604247,1739956979302,-633.81,0.00014027,2]
[353604248,1739956979329,-500.0,0.00014027,2]
[353604249,1739956979357,-562.62,0.00014027,2]
[353604250,1739956979384,-844.44,0.00014027,2]
[353604251,1739956979412,-500.0,0.00014027,2]
[353604252,1739956979439,-500.0,0.00014027,2]
[353604253,1739956979467,-561.42837244,0.00014027,2]
[353604254,1739956979493,-500.0,0.00014027,2]
[353604255,1739956979520,-500.0,0.00014027,2]
[353604256,1739956979545,-500.0,0.00014027,2]
[353604257,1739956979572,-722.42,0.00014027,2]
[353604258,1739956979597,-510.18,0.00014027,2]
[353604259,1739956979623,-500.0,0.00014027,2]
[353604260,1739956979649,-650.55,0.00014027,2]
[353604261,1739956979675,-500.0,0.00014027,2]
[353604262,1739956979700,-500.0,0.00014027,2]
[353604263,1739956979727,-500.0,0.00014027,2]
[353604264,1739956979754,-1055.45,0.00014027,2]
[353604265,1739956979780,-500.0,0.00014027,2]
[353604266,1739956979807,-500.0,0.00014027,2]
[353604267,1739956979835,-500.0,0.00014027,2]
[353604268,1739956979877,-691.51,0.00014027,2]
[353604269,1739956979909,-909.51,0.00014027,2]
[353604270,1739956979938,-500.0,0.00014027,2]
[353604271,1739956979966,-500.0,0.00014027,2]
[353604272,1739956979995,-667.83,0.00014027,2]
[353604273,1739956980024,-500.0,0.00014027,2]
[353604274,1739956980054,-531.54,0.00014027,2]
[353604275,1739956980084,-647.18,0.00014027,2]
[353604276,1739956980115,-500.0,0.00014027,2]
[353604277,1739956980146,-500.0,0.00014027,2]
[353604278,1739956980179,-500.0,0.00014027,2]
[353604279,1739956980210,-930.4,0.00014027,2]
[353604280,1739956980237,-500.0,0.00014027,2]
[353604281,1739956980266,-625.34,0.00014027,2]
[353604282,1739956980295,-500.0,0.00014027,2]
[353604283,1739956980323,-500.0,0.00014027,2]
[353604284,1739956980350,-500.0,0.00014027,2]
[353604285,1739956980379,-500.0,0.00014027,2]
[353604286,1739956980407,-515.28,0.00014027,2]
[353604287,1739956980435,-500.0,0.00014027,2]
[353604288,1739956980466,-551.52,0.00014027,2]
[353604289,1739956980493,-500.0,0.00014027,2]
[353604290,1739956980520,-500.0,0.00014027,2]
[353604291,1739956980552,-500.0,0.00014027,2]
[353604292,1739956980580,-770.16,0.00014027,2]
[353604293,1739956980608,-500.0,0.00014027,2]
[353604294,1739956980636,-500.0,0.00014027,2]
[353604295,1739956980664,-500.0,0.00014027,2]
[353604296,1739956980692,-500.0,0.00014027,2]
[353604297,1739956980719,-180.64972218,0.00014027,2]
[353604298,1739956980746,-500.0,0.00014027,2]
[353604299,1739956980773,-500.0,0.00014027,2]
[353604300,1739956980801,-500.0,0.00014027,2]
[353604301,1739956980833,-500.0,0.00014027,2]
[353604302,1739956980861,-512.49,0.00014027,2]
[353604303,1739956980891,-533.08,0.00014027,2]
[353604304,1739956980919,-628.45,0.00014027,2]
[353604305,1739956980948,-743.05,0.00014027,2]
[353604306,1739956980978,-500.0,0.00014027,2]
[353604307,1739956981007,-1540.98,0.00014027,2]
[353604308,1739956981034,-545.22,0.00014027,2]
[353604309,1739956981062,-807.24,0.00014027,2]
[353604310,1739956981090,-514.11,0.00014027,2]
[353604311,1739956981118,-500.0,0.00014027,2]
[353604312,1739956981145,-819.39,0.00014027,2]
[353604313,1739956981172,-500.0,0.00014027,2]
[353604314,1739956981200,-572.21,0.00014027,2]
[353604315,1739956981228,-500.0,0.00014027,2]
[353604316,1739956981256,-649.94,0.00014027,2]
[353604317,1739956981286,-500.0,0.00014027,2]
[353604318,1739956981314,-500.0,0.00014027,2]
[353604319,1739956981341,-500.0,0.00014027,2]
[353604320,1739956981368,-500.0,0.00014027,2]
[353604321,1739956981396,-500.0,0.00014027,2]
[353604322,1739956981424,-1211.58,0.00014027,2]
[353604323,1739956981450,-535.3046674,0.00014027,2]
[353604324,1739956981477,-500.0,0.00014027,2]
[353604325,1739956981502,-500.0,0.00014027,2]
[353604326,1739956981529,-1135.36,0.00014027,2]
[353604327,1739956981557,-500.0,0.00014027,2]
[353604328,1739956981584,-722.48,0.00014027,2]
[353604329,1739956981611,-500.0,0.00014027,2]
[353604330,1739956981638,-410.82096624,0.00014027,2]
[353604331,1739956981666,-1272.14,0.00014027,2]
[353604332,1739956981694,-500.0,0.00014027,2]
[353604333,1739956981722,-500.0,0.00014027,2]
[353604334,1739956981753,-500.0,0.00014027,2]
[353604335,1739956981782,-712.89,0.00014027,2]
[353604336,1739956981811,-500.0,0.00014027,2]
[353604337,1739956982134,-500.0,0.00014027,2]
[353604338,1739956982163,-500.0,0.00014027,2]
[353604339,1739956982193,-403.68782345,0.00014027,2]
[353604340,1739956982221,-500.0,0.00014027,2]
[353604341,1739956982247,-500.0,0.00014027,2]
[353604342,1739956982273,-862.66,0.00014027,2]
[353604343,1739956982300,-1233.72,0.00014027,2]
[353604344,1739956982326,-740.17,0.00014027,2]
[353604345,1739956982353,-758.66,0.00014027,2]
[353604346,1739956982379,-500.0,0.00014027,2]
[353604347,1739956982406,-601.16,0.00014027,2]
[353604348,1739956982433,-500.0,0.00014027,2]
[353604349,1739956982473,-500.0,0.00014027,2]
[353604350,1739956982502,-689.44,0.00014027,2]
[353604351,1739956982532,-593.48,0.00014027,2]
[353604352,1739956982560,-500.0,0.00014027,2]
[353604353,1739956982588,-500.0,0.00014027,2]
[353604354,1739956982616,-376.33,0.00014027,2]
[353604355,1739956982644,-774.93,0.00014027,2]
[353604356,1739956982672,-500.0,0.00014027,2]
[353604357,1739956982700,-500.0,0.00014027,2]
[353604358,1739956982730,-500.0,0.00014027,2]
[353604359,1739956982759,-1397.033156,0.00014027,2]
[353604360,1739956982788,-500.0,0.00014027,2]
[353604361,1739956982818,-1325.26,0.00014027,2]
[353604362,1739956982848,-500.0,0.00014027,2]
[353604363,1739956982879,-500.0,0.00014027,2]
[353604364,1739956982907,-750.16,0.00014027,2]
[353604365,1739956982936,-575.06061785,0.00014027,2]
[353604366,1739956982964,-500.0,0.00014027,2]
[353604367,1739956982993,-372.09449062,0.00014027,2]
[353604368,1739956983023,-1394.43,0.00014027,2]
[353604369,1739956983053,-500.0,0.00014027,2]
[353604370,1739956983082,-156.190118,0.00014027,2]
[353604371,1739956983111,-500.0,0.00014027,2]
[353604372,1739956983139,-500.0,0.00014027,2]
[353604373,1739956983168,-638.51,0.00014027,2]
[353604374,1739956983196,-500.0,0.00014027,2]
[353604375,1739956983224,-500.0,0.00014027,2]
[353604376,1739956983253,-500.0,0.00014027,2]
[353604377,1739956983283,-500.0,0.00014027,2]
[353604378,1739956983313,-500.0,0.00014027,2]
[353604379,1739956983341,-916.97,0.00014027,2]
[353604380,1739956983370,-500.0,0.00014027,2]
[353604381,1739956983399,-500.0,0.00014027,2]
[353604382,1739956983431,-571.77,0.00014027,2]
[353604383,1739956983459,-500.0,0.00014027,2]
[353604384,1739956983488,-535.59,0.00014027,2]
[353604385,1739956983517,-543.64,0.00014027,2]
[353604386,1739956983545,-500.0,0.00014027,2]
[353604387,1739956983574,-1263.66,0.00014027,2]
[353604388,1739956983603,-646.22,0.00014027,2]
[353604389,1739956983632,-865.23,0.00014027,2]
[353604390,1739956983663,-1825.346312,0.00014027,2]
[353604391,1739956983692,-592.33,0.00014027,2]
[353604392,1739956983719,-500.0,0.00014027,2]
[353604393,1739956983745,-646.68,0.00014027,2]
[353604394,1739956983775,-597.97,0.00014027,2]
[353604395,1739956983804,-500.0,0.00014027,2]
[353604396,1739956983838,-694.2,0.00014027,2]
[353604397,1739956983870,-500.0,0.00014027,2]
[353604398,1739956983905,-500.0,0.00014027,2]
[353604399,1739956983935,-1174.15,0.00014027,2]
[353604400,1739956983966,-500.0,0.00014027,2]
[353604401,1739956983998,-878.0,0.00014027,2]
[353604402,1739956984029,-500.0,0.00014027,2]
[353604403,1739956984058,-825.52,0.00014027,2]
[353604404,1739956984087,-500.0,0.00014027,2]
[353604405,1739956984115,-151.0,0.00014027,2]
[353604406,1739956984146,-500.0,0.00014027,2]
[353604407,1739956984174,-151.0,0.00014027,2]
[353604408,1739956984203,-500.0,0.00014027,2]
[353604409,1739956984230,-500.0,0.00014027,2]
[353604410,1739956984258,-516.38,0.00014027,2]
[353604411,1739956984285,-531.57677858,0.00014027,2]
[353604412,1739956984313,-500.0,0.00014027,2]
[353604413,1739956984341,-500.0,0.00014027,2]
[353604414,1739956984369,-1264.71,0.00014027,2]
[353604415,1739956984399,-906.18,0.00014027,2]
[353604416,1739956984427,-500.0,0.00014027,2]
[353604417,1739956984455,-500.0,0.00014027,2]
[353604418,1739956984484,-500.0,0.00014027,2]
[353604419,1739956984512,-565.96,0.00014027,2]
[353604420,1739956984540,-500.0,0.00014027,2]
[353604421,1739956984568,-988.21,0.00014027,2]
[353604422,1739956984600,-500.0,0.00014027,2]
[353604423,1739956984629,-1121.54,0.00014027,2]
[353604424,1739956984657,-500.0,0.00014027,2]
[353604425,1739956984686,-347.41380702,0.00014027,2]
[353604426,1739956984715,-500.52,0.00014027,2]
[353604427,1739956984744,-500.0,0.00014027,2]
[353604428,1739956984774,-500.0,0.00014027,2]
[353604429,1739956984803,-500.0,0.00014027,2]
[353604430,1739956984834,-1126.66,0.00014027,2]
[353604431,1739956984863,-500.0,0.00014027,2]
[353604432,1739956984893,-628.69,0.00014027,2]
[353604433,1739956984923,-500.0,0.00014027,2]
[353604434,1739956984954,-500.0,0.00014027,2]
[353604435,1739956984985,-500.0,0.00014027,2]
[353604436,1739956985015,-500.0,0.00014027,2]
[353604437,1739956985045,-500.0,0.00014027,2]
[353604438,1739956985075,-883.27,0.00014027,2]
[353604439,1739956985110,-777.31,0.00014027,2]
[353604440,1739956985141,-500.0,0.00014027,2]
[353604441,1739956985174,-500.0,0.00014027,2]
[353604442,1739956985204,-601.15,0.00014027,2]
[353604443,1739956985234,-500.0,0.00014027,2]
[353604444,1739956985264,-500.0,0.00014027,2]
[353604445,1739956985296,-500.0,0.00014027,2]
[353604446,1739956985325,-653.11,0.00014027,2]
[353604447,1739956985354,-500.0,0.00014027,2]
[353604448,1739956985384,-777.33,0.00014027,2]
[353604449,1739956985413,-500.0,0.00014027,2]
[353604450,1739956985442,-500.0,0.00014027,2]
[353604451,1739956985472,-523.08,0.00014027,2]
[353604452,1739956985500,-500.0,0.00014027,2]
[353604453,1739956985528,-1044.61,0.00014027,2]
[353604454,1739956985556,-500.0,0.00014027,2]
[353604455,1739956985588,-500.0,0.00014027,2]
[353604456,1739956985617,-712.57,0.00014027,2]
[353604457,1739956985646,-500.0,0.00014027,2]
[353604458,1739956985675,-500.0,0.00014027,2]
[353604459,1739956985704,-540.46,0.00014027,2]
[353604460,1739956985733,-777.07,0.00014027,2]
[353604461,1739956985762,-687.05,0.00014027,2]
[353604462,1739956985791,-500.0,0.00014027,2]
[353604463,1739956985820,-500.0,0.00014027,2]
[353604464,1739956985851,-879.81,0.00014027,2]
[353604465,1739956985882,-500.0,0.00014027,2]
[353604466,1739956985914,-525.83,0.00014027,2]
[353604467,1739956985945,-625.39,0.00014027,2]
[353604468,1739956985975,-888.05,0.00014027,2]
[353604469,1739956986005,-787.18,0.00014027,2]
[353604470,1739956986036,-500.0,0.00014027,2]
[353604471,1739956986066,-500.0,0.00014027,2]
[353604472,1739956986096,-781.66,0.00014027,2]
[353604473,1739956986125,-532.61,0.00014027,2]
[353604474,1739956986154,-596.76,0.00014027,2]
[353604475,1739956986185,-536.22,0.00014027,2]
[353604476,1739956986214,-506.18139305,0.00014027,2]
[353604477,1739956986243,-500.0,0.00014027,2]
[353604478,1739956986274,-500.0,0.00014027,2]
[353604479,1739956986304,-500.0,0.00014027,2]
[353604480,1739956986334,-914.58,0.00014027,2]
[353604481,1739956986364,-500.0,0.00014027,2]
[353604482,1739956986397,-500.0,0.00014027,2]
[353604483,1739956986428,-500.0,0.00014027,2]
[353604484,1739956986459,-500.0,0.00014027,2]
[353604485,1739956986488,-500.0,0.00014027,2]
[353604486,1739956986850,-500.0,0.00014027,2]
[353604487,1739956986883,-657.0,0.00014027,2]
[353604488,1739956986914,-500.0,0.00014027,2]
[353604489,1739956986945,-727.68,0.00014027,2]
[353604490,1739956986974,-1554.06,0.00014027,2]
[353604491,1739956987008,-594.44,0.00014027,2]
[353604492,1739956987037,-500.0,0.00014027,2]
[353604493,1739956987069,-500.0,0.00014027,2]
[353604494,1739956987098,-500.0,0.00014027,2]
[353604495,1739956987130,-1286.14,0.00014027,2]
[353604496,1739956987160,-539.19,0.00014027,2]
[353604497,1739956987189,-731.14,0.00014027,2]
[353604498,1739956987217,-500.0,0.00014027,2]
[353604499,1739956987246,-523.74,0.00014027,2]
[353604500,1739956987274,-1494.76,0.00014027,2]
[353604501,1739956987302,-500.0,0.00014027,2]
[353604502,1739956987331,-500.0,0.00014027,2]
[353604503,1739956987361,-500.0,0.00014027,2]
[353604504,1739956987388,-500.0,0.00014027,2]
[353604505,1739956987417,-656.29,0.00014027,2]
[353604506,1739956987447,-500.0,0.00014027,2]
[353604507,1739956987478,-500.0,0.00014027,2]
[353604508,1739956987508,-1380.28,0.00014027,2]
[353604509,1739956987537,-500.0,0.00014027,2]
[353604510,1739956987566,-500.0,0.00014027,2]
[353604511,1739956987594,-2603.496,0.00014027,2]
[353604512,1739956987622,-170.575,0.00014027,2]
[353604513,1739956987651,-500.0,0.00014027,2]
[353604514,1739956987679,-500.0,0.00014027,2]
[353604515,1739956987707,-500.0,0.00014027,2]
[353604516,1739956987734,-500.0,0.00014027,2]
[353604517,1739956987763,-1469.68,0.00014027,2]
[353604518,1739956987791,-500.0,0.00014027,2]
[353604519,1739956987818,-500.0,0.00014027,2]
[353604520,1739956987850,-500.0,0.00014027,2]
[353604521,1739956987878,-500.0,0.00014027,2]
[353604522,1739956987908,-1629.48,0.00014027,2]
[353604523,1739956987938,-500.0,0.00014027,2]
[353604524,1739956987966,-506.69,0.00014027,2]
[353604525,1739956987997,-500.0,0.00014027,2]
[353604526,1739956988025,-1643.27,0.00014027,2]
[353604527,1739956988053,-500.0,0.00014027,2]
[353604528,1739956988081,-500.0,0.00014027,2]
[353604529,1739956988107,-500.0,0.00014027,2]
[353604530,1739956988135,-500.07,0.00014027,2]
[353604531,1739956988162,-1374.04,0.00014027,2]
[353604532,1739956988190,-500.0,0.00014027,2]
[353604533,1739956988217,-500.0,0.00014027,2]
[353604534,1739956988245,-500.0,0.00014027,2]
[353604535,1739956988272,-500.0,0.00014027,2]
[353604536,1739956988300,-500.0,0.00014027,2]
[353604537,1739956988328,-500.0,0.00014027,2]
[353604538,1739956988358,-500.0,0.00014027,2]
[353604539,1739956988387,-2880.46,0.00014027,2]
[353604540,1739956988416,-500.0,0.00014027,2]
[353604541,1739956988444,-500.0,0.00014027,2]
[353604542,1739956988471,-500.0,0.00014027,2]
[353604543,1739956988499,-708.89,0.00014027,2]
[353604544,1739956988527,-1303.36,0.00014027,2]
[353604545,1739956988553,-500.0,0.00014027,2]
[353604546,1739956988581,-500.0,0.00014027,2]
[353604547,1739956988608,-500.0,0.00014027,2]
[353604548,1739956988636,-626.2,0.00014027,2]
[353604549,1739956988662,-500.0,0.00014027,2]
[353604550,1739956988689,-500.0,0.00014027,2]
[353604551,1739956988717,-500.0,0.00014027,2]
[353604552,1739956988744,-691.7,0.00014027,2]
[353604553,1739956988772,-500.0,0.00014027,2]
[353604554,1739956988800,-500.0,0.00014027,2]
[353604555,1739956988830,-500.0,0.00014027,2]
[353604556,1739956988858,-598.12,0.00014027,2]
[353604557,1739956988886,-500.0,0.00014027,2]
[353604558,1739956988916,-500.0,0.00014027,2]
[353604559,1739956988947,-500.0,0.00014027,2]
[353604560,1739956988977,-1590.92,0.00014027,2]
[353604561,1739956989010,-500.0,0.00014027,2]
[353604562,1739956989040,-500.0,0.00014027,2]
[353604563,1739956989070,-629.55,0.00014027,2]
[353604564,1739956989101,-500.0,0.00014027,2]
[353604565,1739956989131,-500.0,0.00014027,2]
[353604566,1739956989163,-956.27,0.00014027,2]
[353604567,1739956989193,-500.0,0.00014027,2]
[353604568,1739956989222,-500.0,0.00014027,2]
[353604569,1739956989250,-500.89,0.00014027,2]
[353604570,1739956989279,-848.21,0.00014027,2]
[353604571,1739956989307,-489.23032498,0.00014027,2]
[353604572,1739956989336,-500.0,0.00014027,2]
[353604573,1739956989370,-500.0,0.00014027,2]
[353604574,1739956989399,-998.89,0.00014027,2]
[353604575,1739956989428,-604.13860515,0.00014027,2]
[353604576,1739956989456,-500.0,0.00014027,2]
[353604577,1739956989483,-500.0,0.00014027,2]
[353604578,1739956989511,-782.0,0.00014027,2]
[353604579,1739956989538,-500.0,0.00014027,2]
[353604580,1739956989566,-500.0,0.00014027,2]
[353604581,1739956989594,-840.54,0.00014027,2]
[353604582,1739956989623,-357.9394579,0.00014027,2]
[353604583,1739956989653,-500.0,0.00014027,2]
[353604584,1739956989680,-632.82,0.00014027,2]
[353604585,1739956989710,-500.0,0.00014027,2]
[353604586,1739956989740,-1192.42,0.00014027,2]
[353604587,1739956989767,-500.0,0.00014027,2]
[353604588,1739956989795,-500.0,0.00014027,2]
[353604589,1739956989826,-657.73,0.00014027,2]
[353604590,1739956989854,-500.0,0.00014027,2]
[353604591,1739956989886,-510.90042108,0.00014027,2]
[353604592,1739956989930,-506.79323358,0.00014027,2]
[353604593,1739956989962,-1447.73,0.00014027,2]
[353604594,1739956989992,-825.98,0.00014027,2]
[353604595,1739956990026,-500.0,0.00014027,2]
[353604596,1739956990056,-500.0,0.00014027,2]
[353604597,1739956990084,-500.0,0.00014027,2]
[353604598,1739956990112,-719.81,0.00014027,2]
[353604599,1739956990141,-500.0,0.00014027,2]
[353604600,1739956990169,-500.0,0.00014027,2]
[353604601,1739956990199,-1285.19,0.00014027,2]
[353604602,1739956990227,-500.0,0.00014027,2]
[353604603,1739956990256,-500.0,0.00014027,2]
[353604604,1739956990284,-500.0,0.00014027,2]
[353604605,1739956990314,-2760.81,0.00014027,2]
[353604606,1739956990343,-500.0,0.00014027,2]
[353604607,1739956990373,-1429.12,0.00014027,2]
[353604608,1739956990402,-535.98,0.00014027,2]
[353604609,1739956990431,-1108.97,0.00014027,2]
[353604610,1739956990460,-560.79,0.00014027,2]
[353604611,1739956990488,-1725.34,0.00014027,2]
[353604612,1739956990516,-500.0,0.00014027,2]
[353604613,1739956990543,-583.25,0.00014027,2]
[353604614,1739956990571,-500.0,0.00014027,2]
[353604615,1739956990599,-783.42,0.00014027,2]
[353604616,1739956990631,-500.0,0.00014027,2]
[353604617,1739956990661,-778.14,0.00014027,2]
[353604618,1739956990688,-500.0,0.00014027,2]
[353604619,1739956990717,-1078.1,0.00014027,2]
[353604620,1739956990747,-500.0,0.00014027,2]
[353604621,1739956990778,-2405.75,0.00014027,2]
[353604622,1739956990808,-5296.1,0.00014027,2]
[353604623,1739956990838,-2043.27,0.00014027,2]
[353604624,1739956990867,-1534.33,0.00014027,2]
[353604625,1739956990898,-500.0,0.00014027,2]
[353604626,1739956990928,-647.07,0.00014027,2]
[353604627,1739956990957,-500.0,0.00014027,2]
[353604628,1739956990985,-500.0,0.00014027,2]
[353604629,1739956991014,-500.0,0.00014027,2]
[353604630,1739956991042,-500.0,0.00014027,2]
[353604631,1739956991070,-1051.18,0.00014027,2]
[353604632,1739956991098,-738.28,0.00014027,2]
[353604633,1739956991129,-500.0,0.00014027,2]
[353604634,1739956991158,-1295.32,0.00014027,2]
[353604635,1739956991498,-1093.24,0.00014027,2]
[353604636,1739956991527,-500.0,0.00014027,2]
[353604637,1739956991556,-2278.72,0.00014027,2]
[353604638,1739956991585,-500.0,0.00014027,2]
[353604639,1739956991616,-511.52,0.00014027,2]
[353604640,1739956991646,-1455.08,0.00014027,2]
[353604641,1739956991674,-500.0,0.00014027,2]
[353604642,1739956991703,-500.0,0.00014027,2]
[353604643,1739956991730,-572.16,0.00014027,2]
[353604644,1739956991757,-929.06,0.00014027,2]
[353604645,1739956991785,-1119.05,0.00014027,2]
[353604646,1739956991813,-967.27,0.00014027,2]
[353604647,1739956991843,-500.0,0.00014027,2]
[353604648,1739956991873,-500.0,0.00014027,2]
[353604649,1739956991904,-578.58,0.00014027,2]
[353604650,1739956991934,-500.0,0.00014027,2]
[353604651,1739956991963,-500.0,0.00014027,2]
[353604652,1739956991990,-770.13,0.00014027,2]
[353604653,1739956992018,-500.0,0.00014027,2]
[353604654,1739956992046,-4255.25,0.00014027,2]
[353604655,1739956992073,-500.0,0.00014027,2]
[353604656,1739956992100,-500.0,0.00014027,2]
[353604657,1739956992128,-1120.64,0.00014027,2]
[353604658,1739956992155,-500.0,0.00014027,2]
[353604659,1739956992183,-500.0,0.00014027,2]
[353604660,1739956992209,-1021.92,0.00014027,2]
[353604661,1739956992237,-680.04,0.00014027,2]
[353604662,1739956992266,-500.0,0.00014027,2]
[353604663,1739956992292,-432.58,0.00014027,2]
[353604664,1739956992319,-665.455708,0.00014027,2]
[353604665,1739956992363,-665.455708,0.00014027,2]
[353604666,1739956992393,-500.0,0.00014027,2]
[353604667,1739956992420,-500.0,0.00014027,2]
[353604668,1739956992449,-1015.43,0.00014027,2]
[353604669,1739956992477,-665.455708,0.00014027,2]
[353604670,1739956992506,-665.455708,0.00014027,2]
[353604671,1739956992534,-500.0,0.00014027,2]
[353604672,1739956992562,-500.0,0.00014027,2]
[353604673,1739956992589,-515.04,0.00014027,2]
[353604674,1739956992618,-500.0,0.00014027,2]
[353604675,1739956992647,-500.0,0.00014027,2]
[353604676,1739956992676,-500.0,0.00014027,2]
[353604677,1739956992704,-500.0,0.00014027,2]
[353604678,1739956992732,-500.0,0.00014027,2]